fUSD/lending_fUSD_20250223
["ID","MTS","AMOUNT","RATE_DAILY","PERIOD"]
[354191716,1740341465737,-500.0,0.0001652,2]
[354191717,1740341465746,-1000.0,0.0001652,2]
[354191718,1740341465756,-500.0,0.0001652,2]
[354191719,1740341465765,-500.0,0.0001652,2]
[354191720,1740341465774,-500.0,0.0001652,2]
[354191721,1740341465783,-500.0,0.0001652,2]
[354191722,1740341465792,-500.0,0.0001652,2]
[354191723,1740341465802,-500.0,0.0001652,2]
[354191724,1740341465811,-500.0,0.0001652,2]
[354191725,1740341465819,-500.0,0.0001652,2]
[354191726,1740341465829,-523.19,0.0001652,2]
[354191727,1740341465838,-585.69,0.0001652,2]
[354191728,1740341465847,-500.0,0.0001652,2]
[354191729,1740341465856,-678.37,0.0001652,2]
[354191730,1740341465865,-500.0,0.0001652,2]
[354191731,1740341465874,-500.0,0.0001652,2]
[354191732,1740341465883,-500.0,0.0001652,2]
[354191733,1740341465892,-500.0,0.0001652,2]
[354191734,1740341465901,-500.0,0.0001652,2]
[354191735,1740341465910,-500.0,0.0001652,2]
[354191736,1740341465919,-500.0,0.0001652,2]
[354191737,1740341465928,-500.0,0.0001652,2]
[354191738,1740341465937,-500.0,0.0001652,2]
[354191739,1740341465947,-500.0,0.0001652,2]
[354191740,1740341465956,-500.0,0.0001652,2]
[354191741,1740341465965,-500.0,0.0001652,2]
[354191742,1740341465973,-500.0,0.0001652,2]
[354191743,1740341465983,-500.0,0.0001652,2]
[354191744,1740341465991,-378.84081186,0.0001652,2]
[354191745,1740341466000,-500.0,0.0001652,2]
[354191746,1740341466010,-500.0,0.0001652,2]
[354191747,1740341466019,-500.0,0.0001652,2]
[354191748,1740341466028,-527.32688812,0.0001652,2]
[354191749,1740341466038,-500.0,0.0001652,2]
[354191750,1740341466046,-500.0,0.0001652,2]
[354191751,1740341466056,-500.0,0.0001652,2]
[354191752,1740341466065,-850.422721,0.0001652,2]
[354191753,1740341466074,-850.422721,0.0001652,2]
[354191754,1740341466083,-850.422721,0.0001652,2]
[354191755,1740341466091,-500.0,0.0001652,2]
[354191756,1740341466100,-500.0,0.0001652,2]
[354191757,1740341466109,-850.422721,0.0001652,2]
[354191758,1740341466118,-850.422721,0.0001652,2]
[354191759,1740341466127,-850.422721,0.0001652,2]
[354191760,1740341466136,-500.0,0.0001652,2]
[354191761,1740341466145,-583.86,0.0001652,2]
[354191762,1740341466154,-500.0,0.0001652,2]
[354191763,1740341466164,-500.0,0.0001652,2]
[354191764,1740341466172,-2559.670285,0.0001652,2]
[354191765,1740341466181,-2559.670285,0.0001652,2]
[354191766,1740341466190,-2559.670285,0.0001652,2]
[354191767,1740341466199,-500.0,0.0001652,2]
[354191768,1740341466208,-246.17470534,0.0001652,2]
[354191769,1740341466217,-677.71,0.0001652,2]
[354191770,1740341466226,-500.0,0.0001652,2]
[354191771,1740341466235,-500.0,0.0001652,2]
[354191772,1740341466243,-1573.46,0.0001652,2]
[354191773,1740341466252,-2559.670285,0.0001652,2]
[354191774,1740341466261,-2559.670285,0.0001652,2]
[354191775,1740341466270,-2559.670289,0.0001652,2]
[354191776,1740341466279,-787.53,0.0001652,2]
[354191777,1740341466288,-500.0,0.0001652,2]
[354191778,1740341466297,-349.71341711,0.0001652,2]
[354191779,1740341466306,-500.0,0.0001652,2]
[354191780,1740341466315,-500.0,0.0001652,2]
[354191781,1740341466324,-500.0,0.0001652,2]
[354191782,1740341466333,-500.0,0.0001652,2]
[354191783,1740341466342,-151.0,0.0001652,2]
[354191784,1740341466351,-151.0,0.0001652,2]
[354191785,1740341466359,-151.0,0.0001652,2]
[354191786,1740341466369,-151.0,0.0001652,2]
[354191787,1740341466377,-620.3,0.0001652,2]
[354191788,1740341466386,-500.0,0.0001652,2]
[354191789,1740341466399,-500.0,0.0001652,2]
[354191790,1740341466408,-256.079368,0.0001652,2]
[354191791,1740341466417,-500.0,0.0001652,2]
[354191792,1740341466426,-500.0,0.0001652,2]
[354191793,1740341466435,-1662.15,0.0001652,2]
[354191794,1740341466444,-500.0,0.0001652,2]
[354191795,1740341466453,-565.27,0.0001652,2]
[354191796,1740341466462,-500.0,0.0001652,2]
[354191797,1740341466471,-500.0,0.0001652,2]
[354191798,1740341466480,-772.41,0.0001652,2]
[354191799,1740341466489,-500.0,0.0001652,2]
[354191800,1740341466498,-867.74,0.0001652,2]
[354191801,1740341466507,-500.0,0.0001652,2]
[354191802,1740341466515,-500.0,0.0001652,2]
[354191803,1740341466524,-500.0,0.0001652,2]
[354191804,1740341466533,-500.0,0.0001652,2]
[354191805,1740341466542,-500.0,0.0001652,2]
[354191806,1740341466551,-625.0,0.0001652,2]
[354191807,1740341466562,-852.58,0.0001652,2]
[354191808,1740341466576,-500.0,0.0001652,2]
[354191809,1740341466587,-500.0,0.0001652,2]
[354191810,1740341466597,-500.0,0.0001652,2]
[354191811,1740341466606,-500.0,0.0001652,2]
[354191812,1740341466616,-500.0,0.0001652,2]
[354191813,1740341466625,-500.0,0.0001652,2]
[354191814,1740341466634,-680.23,0.0001652,2]
[354191815,1740341466643,-500.0,0.0001652,2]
[354191816,1740341466653,-504.67,0.0001652,2]
[354191817,1740341466664,-500.0,0.0001652,2]
[354191818,1740341466673,-500.0,0.0001652,2]
[354191819,1740341466682,-500.0,0.0001652,2]
[354191820,1740341466692,-151.0,0.0001652,2]
[354191821,1740341466700,-501.8188706,0.0001652,2]
[354191822,1740341466709,-151.0,0.0001652,2]
[354191823,1740341466719,-151.0,0.0001652,2]
[354191824,1740341466728,-500.0,0.0001652,2]
[354191825,1740341466737,-500.0,0.0001652,2]
[354191826,1740341466746,-270.22058148,0.0001652,2]
[354191827,1740341466756,-500.0,0.0001652,2]
[354191828,1740341466765,-500.0,0.0001652,2]
[354191829,1740341466774,-500.0,0.0001652,2]
[354191830,1740341466783,-500.0,0.0001652,2]
[354191831,1740341466792,-548.75,0.0001652,2]
[354191832,1740341466802,-541.66,0.0001652,2]
[354191833,1740341466813,-500.0,0.0001652,2]
[354191834,1740341466822,-500.0,0.0001652,2]
[354191835,1740341466831,-539.99,0.0001652,2]
[354191836,1740341466841,-500.0,0.0001652,2]
[354191837,1740341466850,-500.0,0.0001652,2]
[354191838,1740341466859,-151.0,0.0001652,2]
[354191839,1740341466868,-500.0,0.0001652,2]
[354191840,1740341466877,-700.87,0.0001652,2]
[354191841,1740341466886,-500.0,0.0001652,2]
[354191842,1740341466895,-565.03,0.0001652,2]
[354191843,1740341466904,-500.0,0.0001652,2]
[354191844,1740341466913,-500.0,0.0001652,2]
[354191845,1740341466922,-521.13,0.0001652,2]
[354191846,1740341466931,-182.97418085,0.0001652,2]
[354191847,1740341466940,-500.0,0.0001652,2]
[354191848,1740341466949,-500.0,0.0001652,2]
[354191849,1740341466958,-500.0,0.0001652,2]
[354191850,1740341466967,-500.0,0.0001652,2]
[354191851,1740341466976,-500.0,0.0001652,2]
[354191852,1740341466985,-605.48,0.0001652,2]
[354191853,1740341466994,-500.0,0.0001652,2]
[354191854,1740341467002,-500.0,0.0001652,2]
[354191855,1740341467011,-981.644609,0.0001652,2]
[354191856,1740341467020,-981.644609,0.0001652,2]
[354191857,1740341467029,-500.0,0.0001652,2]
[354191858,1740341467038,-981.644609,0.0001652,2]
[354191859,1740341467047,-500.0,0.0001652,2]
[354191860,1740341467055,-500.0,0.0001652,2]
[354191861,1740341467066,-981.644609,0.0001652,2]
[354191862,1740341467075,-981.644609,0.0001652,2]
[354191863,1740341467084,-500.0,0.0001652,2]
[354191864,1740341467093,-981.644609,0.0001652,2]
[354191865,1740341467101,-500.0,0.0001652,2]
[354191866,1740341467111,-500.0,0.0001652,2]
[354191867,1740341467119,-500.0,0.0001652,2]
[354191868,1740341467128,-500.0,0.0001652,2]
[354191869,1740341467137,-500.0,0.0001652,2]
[354191870,1740341467147,-500.0,0.0001652,2]
[354191871,1740341467156,-500.0,0.0001652,2]
[354191872,1740341467166,-541.66,0.0001652,2]
[354191873,1740341467175,-500.0,0.0001652,2]
[354191874,1740341467184,-522.43867105,0.0001652,2]
[354191875,1740341467192,-500.0,0.0001652,2]
[354191876,1740341467202,-151.0,0.0001652,2]
[354191877,1740341467211,-151.0,0.0001652,2]
[354191878,1740341467220,-500.0,0.0001652,2]
[354191879,1740341467229,-500.0,0.0001652,2]
[354191880,1740341467238,-151.0,0.0001652,2]
[354191881,1740341467246,-566.02,0.0001652,2]
[354191882,1740341467255,-500.0,0.0001652,2]
[354191883,1740341467264,-500.0,0.0001652,2]
[354191884,1740341467272,-500.0,0.0001652,2]
[354191885,1740341467282,-769.2,0.0001652,2]
[354191886,1740341467291,-151.0,0.0001652,2]
[354191887,1740341467299,-212.69838752,0.0001652,2]
[354191888,1740341467308,-500.0,0.0001652,2]
[354191889,1740341467317,-151.0,0.0001652,2]
[354191890,1740341467326,-151.0,0.0001652,2]
[354191891,1740341467335,-506.26997558,0.0001652,2]
[354191892,1740341467344,-151.0,0.0001652,2]
[354191893,1740341467353,-281.85377673,0.0001652,2]
[354191894,1740341467362,-500.0,0.0001652,2]
[354191895,1740341467371,-500.0,0.0001652,2]
[354191896,1740341467380,-500.0,0.0001652,2]
[354191897,1740341467389,-500.0,0.0001652,2]
[354191898,1740341467399,-509.07773861,0.0001652,2]
[354191899,1740341467408,-544.55,0.0001652,2]
[354191900,1740341467417,-500.0,0.0001652,2]
[354191901,1740341467426,-5000.0,0.0001652,2]
[354191902,1740341467436,-500.0,0.0001652,2]
[354191903,1740341467446,-500.0,0.0001652,2]
[354191904,1740341467455,-792.76,0.0001652,2]
[354191905,1740341467464,-514.94,0.0001652,2]
[354191906,1740341467473,-500.0,0.0001652,2]
[354191907,1740341467482,-688.3,0.0001652,2]
[354191908,1740341467491,-500.0,0.0001652,2]
[354191909,1740341467500,-1535.89,0.0001652,2]
[354191910,1740341467510,-500.0,0.0001652,2]
[354191911,1740341467520,-718.68,0.0001652,2]
[354191912,1740341467529,-525.54,0.0001652,2]
[354191913,1740341467538,-500.0,0.0001652,2]
[354191914,1740341467547,-500.0,0.0001652,2]
[354191915,1740341467557,-500.0,0.0001652,2]
[354191916,1740341467566,-610.43,0.0001652,2]
[354191917,1740341467579,-505.11474053,0.0001652,2]
[354191918,1740341467588,-500.0,0.0001652,2]
[354191919,1740341467598,-500.0,0.0001652,2]
[354191920,1740341467608,-527.71356765,0.0001652,2]
[354191921,1740341467617,-500.0,0.0001652,2]
[354191922,1740341467627,-500.0,0.0001652,2]
[354191923,1740341467636,-500.0,0.0001652,2]
[354191924,1740341467645,-500.0,0.0001652,2]
[354191925,1740341467654,-500.0,0.0001652,2]
[354191926,1740341467663,-500.0,0.0001652,2]
[354191927,1740341467673,-500.0,0.0001652,2]
[354191928,1740341467682,-500.0,0.0001652,2]
[354191929,1740341467691,-500.0,0.0001652,2]
[354191930,1740341467700,-500.0,0.0001652,2]
[354191931,1740341467709,-500.0,0.0001652,2]
[354191932,1740341467719,-500.0,0.0001652,2]
[354191933,1740341467730,-500.0,0.0001652,2]
[354191934,1740341467739,-907.88,0.0001652,2]
[354191935,1740341467748,-841.95,0.0001652,2]
[354191936,1740341467757,-500.0,0.0001652,2]
[354191937,1740341467766,-500.0,0.0001652,2]
[354191938,1740341467775,-500.0,0.0001652,2]
[354191939,1740341467784,-500.0,0.0001652,2]
[354191940,1740341467794,-500.0,0.0001652,2]
[354191941,1740341467804,-500.0,0.0001652,2]
[354191942,1740341467813,-500.0,0.0001652,2]
[354191943,1740341467822,-500.11,0.0001652,2]
[354191944,1740341467831,-363.41884905,0.0001652,2]
[354191945,1740341468831,-136.58115095,0.0001652,2]
[354191946,1740341468845,-500.0,0.0001652,2]
[354191947,1740341468859,-500.0,0.0001652,2]
[354191948,1740341468875,-503.22657561,0.0001652,2]
[354191949,1740341468890,-296.06480221,0.0001652,2]
[354191950,1740341468914,-224.76519779,0.0001652,2]
[354191951,1740341468929,-323.24432797,0.0001652,2]
[354191952,1740341468966,-176.75567203,0.0001652,2]
[354191953,1740341468981,-301.27688297,0.0001652,2]
[354191954,1740341468999,-198.72311703,0.0001652,2]
[354191955,1740341469013,-504.65220861,0.0001652,2]
[354191956,1740341469028,-500.0,0.0001652,2]
[354191957,1740341469043,-125.27804508,0.0001652,2]
[354191958,1740341469116,-374.72195492,0.0001652,2]
[354191959,1740341469130,-508.7378373,0.0001652,2]
[354191960,1740341470566,-1000.0,0.000148,2]
[354191961,1740341470579,-1000.0,0.000148,2]
[354191962,1740341470589,-780.31850305,0.00015829,2]
[354191963,1740341470598,-500.0,0.00016438,2]
[354191964,1740341470607,-236.26043265,0.00016438,2]
[354191965,1740341470617,-500.0,0.00016438,2]
[354191966,1740341470626,-52.5621627,0.0001652,2]
[354191967,1740341470635,-500.0,0.0001652,2]
[354191968,1740341470644,-242.85164803,0.0001652,2]
[354191969,1740341470656,-257.14835197,0.0001652,2]
[354191970,1740341470666,-245.35076803,0.0001652,2]
[354191971,1740341470773,-254.64923197,0.0001652,2]
[354191972,1740341470782,-156.89576803,0.0001652,2]
[354191973,1740341470797,-1916.80211697,0.0001652,2]
[354191974,1740341470805,-2073.697885,0.0001652,2]
[354191975,1740341470814,-615.57,0.0001652,2]
[354191976,1740341470822,-1428.32810781,0.0001652,2]
[354191977,1740341470833,-645.36977119,0.0001652,2]
[354191978,1740341470842,-624.45,0.0001652,2]
[354191979,1740341470851,-500.0,0.0001652,2]
[354191980,1740341470861,-500.0,0.0001652,2]
[354191981,1740341470870,-500.0,0.0001652,2]
[354191982,1740341470879,-500.0,0.0001652,2]
[354191983,1740341470888,-500.0,0.0001652,2]
[354191984,1740341470897,-500.0,0.0001652,2]
[354191985,1740341470907,-505.05316019,0.0001652,2]
[354191986,1740341470917,-757.94,0.0001652,2]
[354191987,1740341470927,-939.94,0.0001652,2]
[354191988,1740341470937,-583.58,0.0001652,2]
[354191989,1740341470946,-500.0,0.0001652,2]
[354191990,1740341470956,-500.0,0.0001652,2]
[354191991,1740341470965,-500.0,0.0001652,2]
[354191992,1740341470976,-541.95,0.0001652,2]
[354191993,1740341470985,-500.0,0.0001652,2]
[354191994,1740341470995,-500.0,0.0001652,2]
[354191995,1740341471004,-500.0,0.0001652,2]
[354191996,1740341471015,-419.50771922,0.0001652,2]
[354191997,1740341471029,-80.49228078,0.0001652,2]
[354191998,1740341471038,-151.0,0.0001652,2]
[354191999,1740341471048,-500.0,0.0001652,2]
[354192000,1740341471059,-151.0,0.0001652,2]
[354192001,1740341471069,-839.77,0.0001652,2]
[354192002,1740341471079,-1211.52,0.0001652,2]
[354192003,1740341471090,-500.0,0.0001652,2]
[354192004,1740341471099,-37.96771922,0.0001652,2]
[354192005,1740341471168,-833.10228078,0.0001652,2]
[354192006,1740341471178,-25.58263592,0.0001652,2]
[354192007,1740341471633,-377.96744388,0.00011299,2]
[354192008,1740341471643,-198.87,0.00013699,2]
[354192009,1740341471653,-261.08168484,0.00015549,2]
[354192010,1740341471662,-752.08087115,0.0001642,2]
[354192011,1740341471674,-28.2376319,0.0001642,2]
[354192012,1740341471683,-279.8623681,0.00016438,2]
[354192013,1740341471703,-220.1376319,0.00016438,2]
[354192014,1740341471712,-500.0,0.00016438,2]
[354192015,1740341471721,-500.0,0.00016438,2]
[354192016,1740341471730,-500.0,0.00016438,2]
[354192017,1740341471739,-500.0,0.00016438,2]
[354192018,1740341471748,-474.41736408,0.0001652,2]
[354192019,1740341471757,-122.38212963,0.0001652,2]
[354192020,1740341471806,-377.61787037,0.0001652,2]
[354192021,1740341471815,-500.0,0.0001652,2]
[354192022,1740341471824,-257.57444797,0.0001652,2]
[354192023,1740341471833,-500.0,0.0001652,2]
[354192024,1740341471842,-500.0,0.0001652,2]
[354192025,1740341471851,-514.83,0.0001652,2]
[354192026,1740341471861,-744.57,0.0001652,2]
[354192027,1740341471870,-500.0,0.0001652,2]
[354192028,1740341471878,-500.0,0.0001652,2]
[354192029,1740341471887,-500.0,0.0001652,2]
[354192030,1740341471897,-500.0,0.0001652,2]
[354192031,1740341471905,-500.0,0.0001652,2]
[354192032,1740341471914,-500.0,0.0001652,2]
[354192033,1740341471923,-835.35,0.0001652,2]
[354192034,1740341471932,-500.0,0.0001652,2]
[354192035,1740341471941,-500.0,0.0001652,2]
[354192036,1740341471951,-593.89,0.0001652,2]
[354192037,1740341471960,-583.55,0.0001652,2]
[354192038,1740341471969,-500.0,0.0001652,2]
[354192039,1740341471977,-500.0,0.0001652,2]
[354192040,1740341471986,-758.45,0.0001652,2]
[354192041,1740341471995,-500.0,0.0001652,2]
[354192042,1740341472005,-675.86,0.0001652,2]
[354192043,1740341472013,-601.85543041,0.0001652,2]
[354192044,1740341472022,-520.83,0.0001652,2]
[354192045,1740341472031,-507.14167133,0.0001652,2]
[354192046,1740341472041,-561.63,0.0001652,2]
[354192047,1740341472050,-500.0,0.0001652,2]
[354192048,1740341472059,-500.0,0.0001652,2]
[354192049,1740341472068,-500.0,0.0001652,2]
[354192050,1740341472077,-500.0,0.0001652,2]
[354192051,1740341472086,-500.0,0.0001652,2]
[354192052,1740341472094,-507.85896575,0.0001652,2]
[354192053,1740341472103,-500.0,0.0001652,2]
[354192054,1740341472112,-639.83,0.0001652,2]
[354192055,1740341472120,-566.57,0.0001652,2]
[354192056,1740341472130,-500.0,0.0001652,2]
[354192057,1740341472138,-500.0,0.0001652,2]
[354192058,1740341472155,-500.0,0.0001652,2]
[354192059,1740341472165,-583.33,0.0001652,2]
[354192060,1740341472176,-279.62563806,0.0001652,2]
[354192061,1740341472185,-500.0,0.0001652,2]
[354192062,1740341472194,-500.0,0.0001652,2]
[354192063,1740341472203,-500.0,0.0001652,2]
[354192064,1740341472212,-500.0,0.0001652,2]
[354192065,1740341472221,-500.0,0.0001652,2]
[354192066,1740341472230,-500.0,0.0001652,2]
[354192067,1740341472239,-500.0,0.0001652,2]
[354192068,1740341472250,-364.741398,0.0001652,2]
[354192069,1740341472261,-364.741398,0.0001652,2]
[354192070,1740341472271,-364.741398,0.0001652,2]
[354192071,1740341472280,-500.0,0.0001652,2]
[354192072,1740341472290,-500.0,0.0001652,2]
[354192073,1740341472299,-285.1275327,0.0001652,2]
[354192074,1740341472308,-611.98150958,0.0001652,2]
[354192075,1740341472317,-500.0,0.0001652,2]
[354192076,1740341472326,-913.51,0.0001652,2]
[354192077,1740341472335,-500.0,0.0001652,2]
[354192078,1740341472345,-992.84,0.0001652,2]
[354192079,1740341472354,-500.0,0.0001652,2]
[354192080,1740341472363,-1141.61,0.0001652,2]
[354192081,1740341472372,-1237.19,0.0001652,2]
[354192082,1740341472382,-500.0,0.0001652,2]
[354192083,1740341472391,-364.741398,0.0001652,2]
[354192084,1740341472400,-364.741398,0.0001652,2]
[354192085,1740341472410,-794.19,0.0001652,2]
[354192086,1740341472419,-500.0,0.0001652,2]
[354192087,1740341472428,-364.741406,0.0001652,2]
[354192088,1740341472437,-500.0,0.0001652,2]
[354192089,1740341472446,-500.0,0.0001652,2]
[354192090,1740341472455,-500.0,0.0001652,2]
[354192091,1740341472465,-500.0,0.0001652,2]
[354192092,1740341472475,-516.36,0.0001652,2]
[354192093,1740341472484,-500.0,0.0001652,2]
[354192094,1740341472494,-500.0,0.0001652,2]
[354192095,1740341472503,-500.0,0.0001652,2]
[354192096,1740341472513,-789.11,0.0001652,2]
[354192097,1740341472522,-500.0,0.0001652,2]
[354192098,1740341472532,-500.0,0.0001652,2]
[354192099,1740341472542,-658.14,0.0001652,2]
[354192100,1740341472552,-500.0,0.0001652,2]
[354192101,1740341472562,-500.0,0.0001652,2]
[354192102,1740341472573,-526.35397392,0.0001652,2]
[354192103,1740341472583,-598.52,0.0001652,2]
[354192104,1740341472592,-500.0,0.0001652,2]
[354192105,1740341472602,-500.0,0.0001652,2]
[354192106,1740341472612,-500.0,0.0001652,2]
[354192107,1740341472622,-606.74,0.0001652,2]
[354192108,1740341472632,-500.0,0.0001652,2]
[354192109,1740341472642,-602.58366792,0.0001652,2]
[354192110,1740341472653,-500.0,0.0001652,2]
[354192111,1740341472663,-500.0,0.0001652,2]
[354192112,1740341472673,-500.0,0.0001652,2]
[354192113,1740341472683,-500.0,0.0001652,2]
[354192114,1740341472692,-620.57,0.0001652,2]
[354192115,1740341472702,-563.96,0.0001652,2]
[354192116,1740341472711,-500.0,0.0001652,2]
[354192117,1740341472720,-878.5,0.0001652,2]
[354192118,1740341472730,-211.95466788,0.0001652,2]
[354192119,1740341472738,-162.54811022,0.0001652,2]
[354192120,1740341472748,-500.0,0.0001652,2]
[354192121,1740341472757,-500.0,0.0001652,2]
[354192122,1740341472766,-500.0,0.0001652,2]
[354192123,1740341472775,-500.0,0.0001652,2]
[354192124,1740341472784,-500.0,0.0001652,2]
[354192125,1740341472794,-500.0,0.0001652,2]
[354192126,1740341472804,-566.11,0.0001652,2]
[354192127,1740341472813,-500.0,0.0001652,2]
[354192128,1740341472822,-988.48,0.0001652,2]
[354192129,1740341472831,-500.0,0.0001652,2]
[354192130,1740341472841,-500.0,0.0001652,2]
[354192131,1740341472850,-784.79,0.0001652,2]
[354192132,1740341472859,-500.0,0.0001652,2]
[354192133,1740341472868,-1000.83,0.0001652,2]
[354192134,1740341472876,-500.0,0.0001652,2]
[354192135,1740341472885,-500.0,0.0001652,2]
[354192136,1740341472895,-500.0,0.0001652,2]
[354192137,1740341472905,-500.0,0.0001652,2]
[354192138,1740341472914,-707.11,0.0001652,2]
[354192139,1740341472925,-500.0,0.0001652,2]
[354192140,1740341472935,-500.0,0.0001652,2]
[354192141,1740341472946,-494.40083436,0.0001652,2]
[354192142,1740341472955,-628.05286678,0.0001652,2]
[354192143,1740341472964,-500.0,0.0001652,2]
[354192144,1740341472973,-526.87105643,0.0001652,2]
[354192145,1740341472982,-500.0,0.0001652,2]
[354192146,1740341472991,-634.88,0.0001652,2]
[354192147,1740341473000,-517.27,0.0001652,2]
[354192148,1740341473010,-576.68,0.0001652,2]
[354192149,1740341473019,-500.0,0.0001652,2]
[354192150,1740341473028,-559.2,0.0001652,2]
[354192151,1740341473037,-500.0,0.0001652,2]
[354192152,1740341473046,-500.0,0.0001652,2]
[354192153,1740341473055,-500.0,0.0001652,2]
[354192154,1740341473065,-500.0,0.0001652,2]
[354192155,1740341473074,-502.02787552,0.0001652,2]
[354192156,1740341473083,-687.22,0.0001652,2]
[354192157,1740341473093,-791.71,0.0001652,2]
[354192158,1740341473102,-500.0,0.0001652,2]
[354192159,1740341473111,-500.0,0.0001652,2]
[354192160,1740341473121,-500.0,0.0001652,2]
[354192161,1740341473131,-500.0,0.0001652,2]
[354192162,1740341473140,-500.0,0.0001652,2]
[354192163,1740341473149,-500.0,0.0001652,2]
[354192164,1740341473159,-500.0,0.0001652,2]
[354192165,1740341473168,-643.07,0.0001652,2]
[354192166,1740341473177,-1087.99,0.0001652,2]
[354192167,1740341473186,-500.0,0.0001652,2]
[354192168,1740341473196,-500.0,0.0001652,2]
[354192169,1740341473205,-500.0,0.0001652,2]
[354192170,1740341473215,-500.0,0.0001652,2]
[354192171,1740341473224,-500.0,0.0001652,2]
[354192172,1740341473234,-500.0,0.0001652,2]
[354192173,1740341473243,-500.0,0.0001652,2]
[354192174,1740341473253,-1414.24,0.0001652,2]
[354192175,1740341473262,-500.0,0.0001652,2]
[354192176,1740341473272,-616.06,0.0001652,2]
[354192177,1740341473281,-500.0,0.0001652,2]
[354192178,1740341473291,-500.0,0.0001652,2]
[354192179,1740341473300,-400.35987915,0.0001652,2]
[354192180,1740341473310,-500.0,0.0001652,2]
[354192181,1740341473320,-500.0,0.0001652,2]
[354192182,1740341473330,-633.40720111,0.0001652,2]
[354192183,1740341473339,-549.50391231,0.0001652,2]
[354192184,1740341473349,-500.0,0.0001652,2]
[354192185,1740341473359,-500.0,0.0001652,2]
[354192186,1740341473368,-500.0,0.0001652,2]
[354192187,1740341473377,-562.84,0.0001652,2]
[354192188,1740341473386,-500.0,0.0001652,2]
[354192189,1740341473396,-500.0,0.0001652,2]
[354192190,1740341473405,-534.97307828,0.0001652,2]
[354192191,1740341473415,-778.66,0.0001652,2]
[354192192,1740341473424,-573.4,0.0001652,2]
[354192193,1740341473434,-1113.82,0.0001652,2]
[354192194,1740341473443,-500.0,0.0001652,2]
[354192195,1740341473453,-521.05,0.0001652,2]
[354192196,1740341473463,-751.15,0.0001652,2]
[354192197,1740341473472,-500.0,0.0001652,2]
[354192198,1740341473482,-500.0,0.0001652,2]
[354192199,1740341473492,-500.0,0.0001652,2]
[354192200,1740341473501,-512.6974428,0.0001652,2]
[354192201,1740341473511,-500.0,0.0001652,2]
[354192202,1740341473521,-500.0,0.0001652,2]
[354192203,1740341473531,-500.0,0.0001652,2]
[354192204,1740341473540,-786.84,0.0001652,2]
[354192205,1740341473550,-901.11,0.0001652,2]
[354192206,1740341473560,-598.16,0.0001652,2]
[354192207,1740341473570,-698.24,0.0001652,2]
[354192208,1740341473581,-500.0,0.0001652,2]
[354192209,1740341473590,-500.01687434,0.0001652,2]
[354192210,1740341473600,-500.0,0.0001652,2]
[354192211,1740341473610,-500.0,0.0001652,2]
[354192212,1740341473621,-500.0,0.0001652,2]
[354192213,1740341473631,-606.09,0.0001652,2]
[354192214,1740341473642,-804.0,0.0001652,2]
[354192215,1740341473654,-1158.74,0.0001652,2]